fUSD/lending_fUSD_20250510
["ID","MTS","AMOUNT","RATE_DAILY","PERIOD"]
[360659827,1746918663873,-400.0,0.00019872,2]
[360659828,1746918663882,-400.0,0.00019872,2]
[360659829,1746918663892,-400.0,0.00019872,2]
[360659830,1746918663902,-400.0,0.00019872,2]
[360659831,1746918663913,-400.0,0.00019872,2]
[360659832,1746918663922,-400.0,0.00019872,2]
[360659833,1746918663932,-400.0,0.00019872,2]
[360659834,1746918663941,-400.0,0.00019872,2]
[360659835,1746918663950,-400.0,0.00019872,2]
[360659836,1746918663959,-400.0,0.00019872,2]
[360659837,1746918663968,-400.0,0.00019872,2]
[360659838,1746918663978,-408.02,0.00019872,2]
[360659839,1746918663987,-608.74,0.00019872,2]
[360659840,1746918663996,-400.0,0.00019872,2]
[360659841,1746918664005,-400.0,0.00019872,2]
[360659842,1746918664014,-400.0,0.00019872,2]
[360659843,1746918664024,-151.0,0.00019872,2]
[360659844,1746918664033,-151.0,0.00019872,2]
[360659845,1746918664041,-400.0,0.00019872,2]
[360659846,1746918664051,-400.0,0.00019872,2]
[360659847,1746918664060,-420.88883192,0.00019872,2]
[360659848,1746918664069,-563.08,0.00019872,2]
[360659849,1746918664078,-563.08,0.00019872,2]
[360659850,1746918664087,-411.59,0.00019872,2]
[360659851,1746918664096,-563.08,0.00019872,2]
[360659852,1746918664105,-563.08,0.00019872,2]
[360659853,1746918664114,-563.08,0.00019872,2]
[360659854,1746918664126,-563.08,0.00019872,2]
[360659855,1746918664135,-563.08,0.00019872,2]
[360659856,1746918664144,-563.08,0.00019872,2]
[360659857,1746918664154,-563.08,0.00019872,2]
[360659858,1746918664163,-400.0,0.00019872,2]
[360659859,1746918664173,-400.0,0.00019872,2]
[360659860,1746918664183,-400.0,0.00019872,2]
[360659861,1746918664193,-400.0,0.00019872,2]
[360659862,1746918664203,-400.0,0.00019872,2]
[360659863,1746918664217,-400.0,0.00019872,2]
[360659864,1746918664227,-175.07474242,0.00019872,2]
[360659865,1746918664236,-1207.14,0.00019872,2]
[360659866,1746918664246,-1207.14,0.00019872,2]
[360659867,1746918664255,-1207.14,0.00019872,2]
[360659868,1746918664265,-1207.14,0.00019872,2]
[360659869,1746918664275,-1207.14,0.00019872,2]
[360659870,1746918664285,-1207.14,0.00019872,2]
[360659871,1746918664295,-1207.14,0.00019872,2]
[360659872,1746918664304,-1207.14,0.00019872,2]
[360659873,1746918664314,-1207.14,0.00019872,2]
[360659874,1746918664324,-400.0,0.00019872,2]
[360659875,1746918664334,-580.46,0.00019872,2]
[360659876,1746918664344,-1323.82,0.00019872,2]
[360659877,1746918664353,-1323.82,0.00019872,2]
[360659878,1746918664362,-1323.82,0.00019872,2]
[360659879,1746918664372,-1323.82,0.00019872,2]
[360659880,1746918664381,-1323.82,0.00019872,2]
[360659881,1746918664390,-1323.82,0.00019872,2]
[360659882,1746918664399,-1323.82,0.00019872,2]
[360659883,1746918664408,-1323.82,0.00019872,2]
[360659884,1746918664420,-1323.82,0.00019872,2]
[360659885,1746918664430,-400.0,0.00019872,2]
[360659886,1746918664439,-400.0,0.00019872,2]
[360659887,1746918664449,-151.0,0.00019872,2]
[360659888,1746918664458,-151.0,0.00019872,2]
[360659889,1746918664467,-400.0,0.00019872,2]
[360659890,1746918664477,-400.0,0.00019872,2]
[360659891,1746918664486,-400.0,0.00019872,2]
[360659892,1746918664495,-400.0,0.00019872,2]
[360659893,1746918664505,-400.0,0.00019872,2]
[360659894,1746918664514,-400.0,0.00019872,2]
[360659895,1746918664523,-400.0,0.00019872,2]
[360659896,1746918664532,-400.0,0.00019872,2]
[360659897,1746918664541,-400.0,0.00019872,2]
[360659898,1746918664551,-400.0,0.00019872,2]
[360659899,1746918664561,-400.0,0.00019872,2]
[360659900,1746918664571,-400.0,0.00019872,2]
[360659901,1746918664581,-400.0,0.00019872,2]
[360659902,1746918664591,-400.0,0.00019872,2]
[360659903,1746918664601,-151.0,0.00019872,2]
[360659904,1746918664611,-151.0,0.00019872,2]
[360659905,1746918664621,-151.0,0.00019872,2]
[360659906,1746918664632,-151.0,0.00019872,2]
[360659907,1746918664642,-151.0,0.00019872,2]
[360659908,1746918664798,-151.0,0.00019872,2]
[360659909,1746918664809,-1157.25,0.00019872,2]
[360659910,1746918664818,-1157.25,0.00019872,2]
[360659911,1746918664828,-1157.25,0.00019872,2]
[360659912,1746918664838,-1157.25,0.00019872,2]
[360659913,1746918664848,-1157.25,0.00019872,2]
[360659914,1746918664858,-1157.25,0.00019872,2]
[360659915,1746918664867,-1157.25,0.00019872,2]
[360659916,1746918664876,-1157.25,0.00019872,2]
[360659917,1746918664885,-1157.25,0.00019872,2]
[360659918,1746918664894,-554.52,0.00019872,2]
[360659919,1746918664903,-621.61,0.00019872,2]
[360659920,1746918664913,-621.61,0.00019872,2]
[360659921,1746918664923,-536.27,0.00019872,2]
[360659922,1746918664932,-621.61,0.00019872,2]
[360659923,1746918664941,-621.61,0.00019872,2]
[360659924,1746918664950,-621.61,0.00019872,2]
[360659925,1746918664960,-621.61,0.00019872,2]
[360659926,1746918664969,-621.61,0.00019872,2]
[360659927,1746918664978,-621.61,0.00019872,2]
[360659928,1746918664987,-621.61,0.00019872,2]
[360659929,1746918664997,-400.0,0.00019872,2]
[360659930,1746918665006,-690.21,0.00019872,2]
[360659931,1746918665015,-151.0,0.00019872,2]
[360659932,1746918665025,-400.0,0.00019872,2]
[360659933,1746918665036,-400.0,0.00019872,2]
[360659934,1746918665045,-617.37,0.00019872,2]
[360659935,1746918665055,-449.42,0.00019872,2]
[360659936,1746918665064,-151.0,0.00019872,2]
[360659937,1746918665073,-151.0,0.00019872,2]
[360659938,1746918665082,-506.87,0.00019872,2]
[360659939,1746918665091,-151.0,0.00019872,2]
[360659940,1746918665101,-400.0,0.00019872,2]
[360659941,1746918665111,-367.661524,0.00019872,2]
[360659942,1746918665120,-367.661524,0.00019872,2]
[360659943,1746918665129,-400.0,0.00019872,2]
[360659944,1746918665138,-151.0,0.00019872,2]
[360659945,1746918665147,-882.4,0.00019872,2]
[360659946,1746918665156,-198.482076,0.00019872,2]
[360659947,1746918665165,-198.482076,0.00019872,2]
[360659948,1746918665174,-198.482076,0.00019872,2]
[360659949,1746918665184,-198.482076,0.00019872,2]
[360659950,1746918665193,-400.0,0.00019872,2]
[360659951,1746918665207,-151.0,0.00019872,2]
[360659952,1746918665217,-151.0,0.00019872,2]
[360659953,1746918665226,-151.0,0.00019872,2]
[360659954,1746918665236,-638.03,0.00019872,2]
[360659955,1746918665246,-1319.65,0.00019872,2]
[360659956,1746918665255,-671.85,0.00019872,2]
[360659957,1746918665265,-400.0,0.00019872,2]
[360659958,1746918665274,-400.0,0.00019872,2]
[360659959,1746918665284,-400.0,0.00019872,2]
[360659960,1746918665294,-549.29,0.00019872,2]
[360659961,1746918665303,-1108.91,0.00019872,2]
[360659962,1746918665312,-500.0,0.00019872,2]
[360659963,1746918665322,-1641.78,0.00019872,2]
[360659964,1746918665332,-1551.21,0.00019872,2]
[360659965,1746918665341,-498.78,0.00019872,2]
[360659966,1746918665350,-151.0,0.00019872,2]
[360659967,1746918665359,-400.0,0.00019872,2]
[360659968,1746918665368,-400.0,0.00019872,2]
[360659969,1746918665377,-151.0,0.00019872,2]
[360659970,1746918665386,-1902.18,0.00019872,2]
[360659971,1746918665395,-151.0,0.00019872,2]
[360659972,1746918665405,-2308.80397,0.00019872,2]
[360659973,1746918665414,-2308.80397,0.00019872,2]
[360659974,1746918665423,-400.0,0.00019872,2]
[360659975,1746918665433,-608.71,0.00019872,2]
[360659976,1746918665442,-945.17,0.00019872,2]
[360659977,1746918665452,-151.0,0.00019872,2]
[360659978,1746918665461,-400.0,0.00019872,2]
[360659979,1746918665471,-400.0,0.00019872,2]
[360659980,1746918665480,-202.12645255,0.00019872,2]
[360659981,1746918665490,-162.1,0.00019872,2]
[360659982,1746918665499,-400.0,0.00019872,2]
[360659983,1746918665508,-400.0,0.00019872,2]
[360659984,1746918665518,-400.0,0.00019872,2]
[360659985,1746918665527,-400.0,0.00019872,2]
[360659986,1746918665537,-510.12725117,0.00019872,2]
[360659987,1746918665546,-400.0,0.00019872,2]
[360659988,1746918665556,-400.0,0.00019872,2]
[360659989,1746918665565,-400.0,0.00019872,2]
[360659990,1746918665574,-400.0,0.00019872,2]
[360659991,1746918665584,-400.0,0.00019872,2]
[360659992,1746918665593,-400.0,0.00019872,2]
[360659993,1746918665602,-363.945222,0.00019872,2]
[360659994,1746918665611,-400.0,0.00019872,2]
[360659995,1746918665621,-363.945222,0.00019872,2]
[360659996,1746918665631,-484.20264328,0.00019872,2]
[360659997,1746918665640,-506.82019348,0.00019872,2]
[360659998,1746918665650,-151.500119,0.00019872,2]
[360659999,1746918665660,-400.0,0.00019872,2]
[360660000,1746918665670,-400.0,0.00019872,2]
[360660001,1746918665679,-500.0,0.00019872,2]
[360660002,1746918665689,-201.19737534,0.00019872,2]
[360660003,1746918665698,-508.34666095,0.00019873,2]
[360660004,1746918665708,-500.0,0.00019873,2]
[360660005,1746918665717,-500.0,0.00019873,2]
[360660006,1746918665726,-160.57086387,0.00019873,2]
[360660007,1746918665736,-160.6846534,0.00019873,2]
[360660008,1746918665746,-151.0,0.00019873,2]
[360660009,1746918665756,-151.0,0.00019873,2]
[360660010,1746918665765,-200.0,0.00019873,2]
[360660011,1746918665775,-66437.87532656,0.00019875,2]
[360660012,1746918665784,-605.86942249,0.00019876,2]
[360660013,1746918665794,-424.10859574,0.00019876,2]
[360660014,1746918665803,-200.0,0.00019878,2]
[360660015,1746918665813,-200.0,0.0001988,2]
[360660016,1746918665823,-151.0,0.00019882,2]
[360660017,1746918665833,-12500.0,0.00019882,2]
[360660018,1746918665842,-200.0,0.00019883,2]
[360660019,1746918665852,-200.0,0.00019883,2]
[360660020,1746918665862,-200.0,0.00019884,2]
[360660021,1746918665872,-1663.13742862,0.00019884,2]
[360660022,1746918665881,-5398.11771076,0.00019884,2]
[360660023,1746918665891,-1363.1593744,0.00019884,2]
[360660024,1746918665901,-1047.10450484,0.00019884,2]
[360660025,1746918665911,-221.37638303,0.00019884,3]
[360660026,1746918665923,-200.0,0.00019887,2]
[360660027,1746918665932,-200.0,0.0001989,2]
[360660028,1746918665942,-558.01,0.0001989,2]
[360660029,1746918665952,-485.85,0.0001989,2]
[360660030,1746918665961,-440.97,0.0001989,2]
[360660031,1746918665970,-329.82030234,0.0001989,2]
[360660032,1746918665980,-527.17,0.0001989,2]
[360660033,1746918665989,-260.13,0.0001989,2]
[360660034,1746918665998,-856.38,0.0001989,2]
[360660035,1746918666008,-410.54,0.0001989,2]
[360660036,1746918666018,-400.0,0.0001989,2]
[360660037,1746918666028,-316.34775841,0.0001989,2]
[360660038,1746918666038,-400.0,0.0001989,2]
[360660039,1746918666047,-400.0,0.0001989,2]
[360660040,1746918666057,-400.0,0.0001989,2]
[360660041,1746918666065,-400.0,0.0001989,2]
[360660042,1746918666075,-400.0,0.0001989,2]
[360660043,1746918666084,-683.05,0.0001989,2]
[360660044,1746918666095,-400.0,0.0001989,2]
[360660045,1746918666106,-500.0,0.0001989,2]
[360660046,1746918666115,-151.0,0.00019891,2]
[360660047,1746918666124,-151.0,0.00019891,2]
[360660048,1746918666134,-224.13032004,0.00019891,2]
[360660049,1746918666143,-151.0,0.00019891,2]
[360660050,1746918666154,-400.0,0.00019891,2]
[360660051,1746918666163,-12500.0,0.00019891,2]
[360660052,1746918666174,-12500.0,0.00019891,2]
[360660053,1746918666183,-12500.0,0.00019891,2]
[360660054,1746918666192,-514.97216828,0.00019892,2]
[360660055,1746918666204,-400.0,0.00019892,2]
[360660056,1746918666216,-5398.11771075,0.00019892,2]
[360660057,1746918666225,-1363.15937439,0.00019892,2]
[360660058,1746918666234,-400.0,0.00019892,2]
[360660059,1746918666244,-400.0,0.00019892,2]
[360660060,1746918666255,-400.0,0.00019892,2]
[360660061,1746918666264,-632.11,0.00019892,2]
[360660062,1746918666274,-400.0,0.00019892,2]
[360660063,1746918666284,-400.0,0.00019892,2]
[360660064,1746918666293,-400.0,0.00019892,2]
[360660065,1746918666303,-400.0,0.00019892,2]
[360660066,1746918666313,-400.0,0.00019893,2]
[360660067,1746918666323,-400.0,0.00019893,2]
[360660068,1746918666333,-400.0,0.00019893,2]
[360660069,1746918666343,-815.58,0.00019893,2]
[360660070,1746918666352,-408.02,0.00019893,2]
[360660071,1746918666361,-608.74,0.00019893,2]
[360660072,1746918666372,-411.59,0.00019893,2]
[360660073,1746918666381,-400.0,0.00019893,2]
[360660074,1746918666390,-400.0,0.00019893,2]
[360660075,1746918666399,-580.46,0.00019893,2]
[360660076,1746918666408,-400.0,0.00019893,2]
[360660077,1746918666419,-400.0,0.00019893,2]
[360660078,1746918666428,-400.0,0.00019893,2]
[360660079,1746918666437,-400.0,0.00019893,2]
[360660080,1746918666446,-400.0,0.00019893,2]
[360660081,1746918666456,-400.0,0.00019893,2]
[360660082,1746918666465,-400.0,0.00019893,2]
[360660083,1746918666476,-554.52,0.00019893,2]
[360660084,1746918666485,-536.27,0.00019893,2]
[360660085,1746918666494,-400.0,0.00019893,2]
[360660086,1746918666503,-690.21,0.00019893,2]
[360660087,1746918666513,-358.20285958,0.00019893,2]
[360660088,1746918666522,-400.0,0.00019893,2]
[360660089,1746918666531,-617.37,0.00019893,2]
[360660090,1746918666541,-449.42,0.00019893,2]
[360660091,1746918666551,-506.87,0.00019893,2]
[360660092,1746918666560,-400.0,0.00019893,2]
[360660093,1746918666570,-329.62,0.00019893,2]
[360660094,1746918666579,-882.4,0.00019893,2]
[360660095,1746918666588,-400.0,0.00019893,2]
[360660096,1746918666598,-638.03,0.00019893,2]
[360660097,1746918666607,-1319.65,0.00019893,2]
[360660098,1746918666617,-671.85,0.00019893,2]
[360660099,1746918666626,-400.0,0.00019893,2]
[360660100,1746918666635,-400.0,0.00019893,2]
[360660101,1746918666645,-400.0,0.00019893,2]
[360660102,1746918666654,-549.29,0.00019893,2]
[360660103,1746918666664,-1108.91,0.00019893,2]
[360660104,1746918666673,-500.0,0.00019893,2]
[360660105,1746918666683,-1641.78,0.00019893,2]
[360660106,1746918666692,-1551.21,0.00019893,2]
[360660107,1746918666701,-498.78,0.00019893,2]
[360660108,1746918666711,-400.0,0.00019893,2]
[360660109,1746918666720,-372.086704,0.00019893,2]
[360660110,1746918666730,-400.0,0.00019893,2]
[360660111,1746918666739,-1902.18,0.00019893,2]
[360660112,1746918666749,-400.0,0.00019893,2]
[360660113,1746918666759,-2593.14,0.00019893,2]
[360660114,1746918666768,-608.71,0.00019893,2]
[360660115,1746918666777,-945.17,0.00019893,2]
[360660116,1746918666786,-400.0,0.00019893,2]
[360660117,1746918666795,-400.0,0.00019893,2]
[360660118,1746918666804,-400.0,0.00019893,2]
[360660119,1746918666814,-1339.39,0.00019893,2]
[360660120,1746918666824,-400.0,0.00019893,2]
[360660121,1746918666833,-1363.06,0.00019893,2]
[360660122,1746918666843,-239.0,0.00019893,2]
[360660123,1746918666852,-1055.27,0.00019893,2]
[360660124,1746918666861,-400.0,0.00019893,2]
[360660125,1746918666870,-400.0,0.00019893,2]
[360660126,1746918666880,-400.0,0.00019893,2]
[360660127,1746918666889,-406.29,0.00019893,2]
[360660128,1746918666898,-400.0,0.00019893,2]
[360660129,1746918666908,-400.0,0.00019893,2]
[360660130,1746918666918,-400.0,0.00019893,2]
[360660131,1746918666928,-1289.69,0.00019893,2]
[360660132,1746918666938,-533.94,0.00019893,2]
[360660133,1746918666948,-400.0,0.00019893,2]
[360660134,1746918666957,-6835.49,0.00019893,2]
[360660135,1746918666966,-400.0,0.00019893,2]
[360660136,1746918666975,-400.0,0.00019893,2]
[360660137,1746918666984,-802.89,0.00019893,2]
[360660138,1746918666993,-400.0,0.00019893,2]
[360660139,1746918667002,-400.0,0.00019893,2]
[360660140,1746918667011,-1277.05,0.00019893,2]
[360660141,1746918667020,-400.0,0.00019893,2]
[360660142,1746918667029,-908.53,0.00019893,2]
[360660143,1746918667039,-400.0,0.00019893,2]
[360660144,1746918667047,-400.0,0.00019893,2]
[360660145,1746918667056,-200.0,0.00019893,2]
[360660146,1746918667066,-500.0,0.00019894,2]
[360660147,1746918667075,-500.0,0.00019894,2]
[360660148,1746918667085,-151.0,0.00019894,2]
[360660149,1746918667094,-152.731047,0.00019894,2]
[360660150,1746918667103,-151.0,0.00019894,2]
[360660151,1746918667112,-400.0,0.00019894,2]
[360660152,1746918667121,-400.0,0.00019894,2]
[360660153,1746918667130,-400.0,0.00019894,2]
[360660154,1746918667139,-438.48,0.00019894,2]
[360660155,1746918667148,-400.0,0.00019894,2]
[360660156,1746918667158,-557.8,0.00019894,2]
[360660157,1746918667168,-400.0,0.00019894,2]
[360660158,1746918667177,-1133.04,0.00019894,2]
[360660159,1746918667187,-400.0,0.00019894,2]
[360660160,1746918667196,-410.21,0.00019894,2]
[360660161,1746918667209,-532.67,0.00019894,2]
[360660162,1746918667218,-400.0,0.00019894,2]
[360660163,1746918667227,-400.0,0.00019894,2]
[360660164,1746918667236,-400.0,0.00019894,2]
[360660165,1746918667246,-400.0,0.00019894,2]
[360660166,1746918667256,-563.08,0.00019894,2]
[360660167,1746918667264,-1207.14,0.00019894,2]
[360660168,1746918667274,-1323.82,0.00019894,2]
[360660169,1746918667285,-400.0,0.00019894,2]
[360660170,1746918667295,-1157.25,0.00019894,2]
[360660171,1746918667304,-621.61,0.00019894,2]
[360660172,1746918667314,-856.38,0.00019895,2]
[360660173,1746918667322,-160.500912,0.00019895,2]
[360660174,1746918667332,-223.808592,0.00019895,2]
[360660175,1746918667341,-151.0,0.00019895,2]
[360660176,1746918667351,-151.0,0.00019895,2]
[360660177,1746918667360,-151.0,0.00019895,2]
[360660178,1746918667370,-410.54,0.00019895,2]
[360660179,1746918667379,-399.94,0.00019895,2]
[360660180,1746918667388,-400.0,0.00019895,2]
[360660181,1746918667397,-400.0,0.00019895,2]
[360660182,1746918667406,-400.0,0.00019895,2]
[360660183,1746918667417,-400.0,0.00019895,2]
[360660184,1746918667426,-400.0,0.00019895,2]
[360660185,1746918667435,-683.05,0.00019895,2]
[360660186,1746918667444,-400.0,0.00019895,2]
[360660187,1746918667453,-500.0,0.00019896,2]
[360660188,1746918667463,-325.745206,0.00019896,2]
[360660189,1746918667472,-558.01,0.00019896,2]
[360660190,1746918667481,-558.01,0.00019896,2]
[360660191,1746918667490,-23438.389125,0.00019896,2]
[360660192,1746918667499,-152.985586,0.00019896,2]
[360660193,1746918667508,-485.85,0.00019896,2]
[360660194,1746918667517,-485.85,0.00019896,2]
[360660195,1746918667526,-440.97,0.00019896,2]
[360660196,1746918667535,-440.97,0.00019896,2]
[360660197,1746918667544,-527.17,0.00019896,2]
[360660198,1746918667554,-527.17,0.00019896,2]
[360660199,1746918667563,-151.0,0.00019896,2]
[360660200,1746918667573,-23438.389125,0.00019896,2]
[360660201,1746918667582,-152.985585,0.00019896,2]
[360660202,1746918667592,-257.418816,0.00019896,2]
[360660203,1746918667601,-156.526402,0.00019896,2]
[360660204,1746918667610,-367.661524,0.00019896,2]
[360660205,1746918667620,-367.661524,0.00019896,2]
[360660206,1746918667629,-198.482076,0.00019896,2]
[360660207,1746918667638,-198.482076,0.00019896,2]
[360660208,1746918667647,-2956.778513,0.00019896,2]
[360660209,1746918667657,-200.0,0.00019897,2]
[360660210,1746918667667,-500.0,0.00019897,2]
[360660211,1746918667677,-157.601936,0.00019897,2]
[360660212,1746918667829,-200.0,0.00019897,2]
[360660213,1746918667839,-200.0,0.00019898,2]
[360660214,1746918667848,-151.0,0.00019898,2]
[360660215,1746918667858,-500.0,0.00019898,2]
[360660216,1746918667867,-200.0,0.00019899,2]
[360660217,1746918667877,-558.01,0.00019899,2]
[360660218,1746918667886,-485.85,0.00019899,2]
[360660219,1746918667895,-440.97,0.00019899,2]
[360660220,1746918667905,-527.17,0.00019899,2]
[360660221,1746918667917,-400.0,0.00019899,2]
[360660222,1746918667926,-238.80782894,0.00019899,2]
[360660223,1746918667936,-400.0,0.00019899,2]
[360660224,1746918667946,-815.58,0.00019899,2]
[360660225,1746918667956,-408.02,0.00019899,2]
[360660226,1746918667965,-470.38118304,0.00019899,2]
[360660227,1746918668256,-138.35881696,0.00019899,2]
[360660228,1746918668266,-411.59,0.00019899,2]
[360660229,1746918668276,-366.70848991,0.00019899,2]
[360660230,1746918668288,-400.0,0.00019899,2]
[360660231,1746918668297,-580.46,0.00019899,2]
[360660232,1746918668306,-389.07327743,0.00019899,2]
[360660233,1746918668316,-400.0,0.00019899,2]
[360660234,1746918668326,-256.3575855,0.00019899,2]
[360660235,1746918668338,-143.6424145,0.00019899,2]
[360660236,1746918668347,-188.60835373,0.00019899,2]
[360660237,1746918668358,-400.0,0.00019899,2]
[360660238,1746918668368,-400.0,0.00019899,2]
[360660239,1746918668379,-554.52,0.00019899,2]
[360660240,1746918668389,-536.27,0.00019899,2]
[360660241,1746918668398,-185.61847319,0.00019899,2]
[360660242,1746918668410,-214.38152681,0.00019899,2]
[360660243,1746918668420,-690.21,0.00019899,2]
[360660244,1746918668431,-400.0,0.00019899,2]
[360660245,1746918668440,-617.37,0.00019899,2]
[360660246,1746918668450,-449.42,0.00019899,2]
[360660247,1746918668459,-506.87,0.00019899,2]
[360660248,1746918668468,-509.36609094,0.00019899,2]
[360660249,1746918668477,-882.4,0.00019899,2]
[360660250,1746918668486,-400.0,0.00019899,2]
[360660251,1746918668496,-638.03,0.00019899,2]
[360660252,1746918668505,-514.42009156,0.00019899,2]
[360660253,1746918668688,-554.97,0.00019178,2]
[360660254,1746918668698,-400.0,0.00019178,2]
[360660255,1746918668707,-554.97,0.00019178,2]
[360660256,1746918668717,-400.0,0.00019178,2]
[360660257,1746918668726,-400.0,0.00019178,2]
[360660258,1746918668735,-400.0,0.00019178,2]
[360660259,1746918668745,-554.97,0.0001974,2]
[360660260,1746918668754,-400.0,0.00019741,2]
[360660261,1746918668763,-693.64,0.00019742,2]
[360660262,1746918668773,-400.0,0.00019743,2]
[360660263,1746918668783,-554.97,0.00019745,2]
[360660264,1746918668792,-693.64,0.00019858,2]
[360660265,1746918668801,-554.97,0.00019858,2]
[360660266,1746918668810,-400.0,0.00019858,2]
[360660267,1746918668821,-693.64,0.0001987,2]
[360660268,1746918668831,-172.72360407,0.0001987,2]
[360660269,1746918668843,-382.24639593,0.0001987,2]
[360660270,1746918668853,-693.64,0.00019871,2]
[360660271,1746918668863,-687.74927054,0.00019871,2]
[360660272,1746918668874,-5.89072946,0.00019871,2]
[360660273,1746918668885,-693.64,0.00019871,2]
[360660274,1746918668895,-400.0,0.00019871,2]
[360660275,1746918668904,-400.0,0.00019871,2]
[360660276,1746918668913,-450.0,0.00019871,2]
[360660277,1746918668924,-554.97,0.00019871,2]
[360660278,1746918668933,-554.97,0.00019892,2]
[360660279,1746918668942,-805.22990844,0.00019899,2]
[360660280,1746918668952,-671.85,0.00019899,2]
[360660281,1746918668961,-192.72564972,0.00019899,2]
[360660282,1746918668974,-207.27435028,0.00019899,2]
[360660283,1746918668983,-400.0,0.00019899,2]
[360660284,1746918668993,-436.44,0.00019899,2]
[360660285,1746918669002,-549.29,0.00019899,2]
[360660286,1746918669011,-1108.91,0.00019899,2]
[360660287,1746918669021,-500.0,0.00019899,2]
[360660288,1746918669030,-1641.78,0.00019899,2]
[360660289,1746918669039,-1551.21,0.00019899,2]
[360660290,1746918669049,-498.78,0.00019899,2]
[360660291,1746918669058,-151.0,0.00019899,2]
[360660292,1746918669069,-400.0,0.00019899,2]
[360660293,1746918669079,-151.0,0.00019899,2]
[360660294,1746918669088,-1780.78314229,0.00019899,2]
[360660295,1746918669100,-121.39685771,0.00019899,2]
[360660296,1746918669109,-151.0,0.00019899,2]
[360660297,1746918669118,-2308.80397,0.00019899,2]
[360660298,1746918669128,-2308.80397,0.00019899,2]
[360660299,1746918669138,-400.0,0.00019899,2]
[360660300,1746918669147,-400.0,0.00019899,2]
[360660301,1746918669158,-608.71,0.00019899,2]
[360660302,1746918669168,-945.17,0.00019899,2]
[360660303,1746918669180,-151.0,0.00019899,2]
[360660304,1746918669190,-400.0,0.00019899,2]
[360660305,1746918669201,-400.0,0.00019899,2]
[360660306,1746918669210,-400.0,0.00019899,2]
[360660307,1746918669220,-400.0,0.00019899,2]
[360660308,1746918669229,-400.0,0.00019899,2]
[360660309,1746918669239,-400.0,0.00019899,2]
[360660310,1746918669249,-400.0,0.00019899,2]
[360660311,1746918669258,-400.0,0.00019899,2]
[360660312,1746918669267,-294.69342746,0.00019899,2]
[360660313,1746918669278,-400.0,0.00019899,2]
[360660314,1746918669287,-632.11,0.00019899,2]
[360660315,1746918669297,-400.0,0.00019899,2]
[360660316,1746918669306,-400.0,0.00019899,2]
[360660317,1746918669315,-400.0,0.00019899,2]
[360660318,1746918669324,-400.0,0.00019899,2]
[360660319,1746918669334,-400.0,0.00019899,2]
[360660320,1746918669344,-400.0,0.00019899,2]
[360660321,1746918669353,-400.0,0.00019899,2]
[360660322,1746918669362,-363.945222,0.00019899,2]
[360660323,1746918669372,-400.0,0.00019899,2]
[360660324,1746918669381,-400.0,0.00019899,2]
[360660325,1746918669390,-400.0,0.00019899,2]
[360660326,1746918669399,-363.945222,0.00019899,2]